fUSD/lending_fUSD_20240107
["ID","MTS","AMOUNT","RATE_DAILY","PERIOD"]
[310712209,1704649844135,-24776.36439558,0.00031761,7]
[310712210,1704649844146,-2942.22467761,0.00031761,7]
[310712211,1704649844157,-12030.82580324,0.00031761,7]
[310712212,1704649844167,-22821.83589369,0.00031761,7]
[310712213,1704649844176,-2000.0,0.000318,2]
[310712214,1704649844186,-268.6592027,0.00031858,7]
[310712215,1704649844196,-432.0,0.000319,2]
[310712216,1704649844206,-209.0,0.000319,2]
[310712217,1704649844215,-342.0,0.000319,2]
[310712218,1704649844226,-558.61,0.00031962,2]
[310712219,1704649844236,-153.84,0.00031963,2]
[310712220,1704649844246,-297.1247831,0.00032,4]
[310712221,1704649844255,-488.4079912,0.00032,4]
[310712222,1704649844265,-179.76654028,0.00032,4]
[310712223,1704649844274,-155.0,0.00032,2]
[310712224,1704649844284,-2637.637374,0.00032,2]
[310712225,1704649844293,-362.08097721,0.00032,2]
[310712226,1704649844302,-362.08097721,0.00032,2]
[310712227,1704649844311,-362.08097721,0.00032,2]
[310712228,1704649844320,-266.92448542,0.00032067,5]
[310712229,1704649844330,-315.15,0.00032082,2]
[310712230,1704649844339,-387.0,0.00032148,2]
[310712231,1704649844349,-943.0,0.00032148,2]
[310712232,1704649844361,-1234.0,0.00032148,2]
[310712233,1704649844372,-1254.0,0.00032148,2]
[310712234,1704649844382,-810.855,0.00032148,2]
[310712235,1704649844392,-318.0,0.00032148,2]
[310712236,1704649844402,-882.0,0.00032148,2]
[310712237,1704649844411,-425.0,0.00032148,2]
[310712238,1704649844421,-233.957,0.00032148,2]
[310712239,1704649844431,-506.0,0.00032148,2]
[310712240,1704649844441,-5985.03633097,0.00032148,2]
[310712241,1704649844454,-13668.96366903,0.00032148,2]
[310712242,1704649844464,-150.0,0.00032148,2]
[310712243,1704649844473,-2267.0,0.00032148,2]
[310712244,1704649844483,-2897.0,0.00032148,2]
[310712245,1704649844493,-150.0,0.00032148,2]
[310712246,1704649844502,-1027.0,0.00032148,2]
[310712247,1704649844512,-154.370678,0.00032169,2]
[310712248,1704649844521,-348.18,0.00032246,2]
[310712249,1704649844531,-204.0,0.00032254,16]
[310712250,1704649844540,-194.04,0.00032282,2]
[310712251,1704649844550,-167.0,0.00032326,2]
[310712252,1704649844559,-200.0,0.00032332,3]
[310712253,1704649844568,-800.0,0.00032332,5]
[310712254,1704649844578,-176.0,0.000324,34]
[310712255,1704649844587,-1300.43,0.00032421,7]
[310712256,1704649844597,-3000.0,0.0003249,2]
[310712257,1704649844606,-466.0,0.00032492,5]
[310712258,1704649844617,-500.0,0.0003263,2]
[310712259,1704649844627,-500.0,0.0003269,10]
[310712260,1704649844637,-2000.0,0.000328,2]
[310712261,1704649844648,-150.31664557,0.0003284,2]
[310712262,1704649844658,-715.95,0.00032875,2]
[310712263,1704649844668,-715.95,0.00032875,2]
[310712264,1704649844679,-153.84,0.00032877,2]
[310712265,1704649844690,-150.1,0.00032877,2]
[310712266,1704649844699,-1000.0,0.00032877,2]
[310712267,1704649844709,-1000.0,0.00032877,2]
[310712268,1704649844718,-1000.0,0.00032877,2]
[310712269,1704649844728,-1000.0,0.00032877,2]
[310712270,1704649844739,-1000.0,0.00032877,2]
[310712271,1704649844749,-1000.0,0.00032877,2]
[310712272,1704649844759,-1000.0,0.00032877,2]
[310712273,1704649844769,-1000.0,0.00032877,2]
[310712274,1704649844778,-1000.0,0.00032877,2]
[310712275,1704649844787,-1000.0,0.00032877,2]
[310712276,1704649844797,-1000.0,0.00032877,2]
[310712277,1704649844806,-1000.0,0.00032877,2]
[310712278,1704649844815,-1000.0,0.00032877,2]
[310712279,1704649844824,-1000.0,0.00032877,2]
[310712280,1704649844834,-1000.0,0.00032877,2]
[310712281,1704649844843,-1000.0,0.00032877,2]
[310712282,1704649844853,-1000.0,0.00032877,2]
[310712283,1704649844863,-1000.0,0.00032877,2]
[310712284,1704649844872,-1000.0,0.00032877,2]
[310712285,1704649844882,-1000.0,0.00032877,2]
[310712286,1704649844892,-1000.0,0.00032877,2]
[310712287,1704649844901,-1000.0,0.00032877,2]
[310712288,1704649844911,-1000.0,0.00032877,2]
[310712289,1704649844921,-1000.0,0.00032877,2]
[310712290,1704649844931,-1000.0,0.00032877,2]
[310712291,1704649844941,-1000.0,0.00032877,2]
[310712292,1704649844950,-1000.0,0.00032877,2]
[310712293,1704649844960,-1000.0,0.00032877,2]
[310712294,1704649844969,-402.0,0.00032877,2]
[310712295,1704649844979,-150.0,0.00032877,2]
[310712296,1704649844990,-2500.0,0.00032877,7]
[310712297,1704649844999,-1970.64,0.00032877,15]
[310712298,1704649845008,-1703.01,0.00032877,30]
[310712299,1704649845019,-155.0,0.00032877,2]
[310712300,1704649845028,-235.06009145,0.00032879,4]
[310712301,1704649845037,-500.0,0.00032881,2]
[310712302,1704649845047,-200.0,0.00032881,2]
[310712303,1704649845056,-3113.976,0.000329,2]
[310712304,1704649845065,-917.78142382,0.000329,2]
[310712305,1704649845075,-8000.0,0.000329,2]
[310712306,1704649845086,-558.61,0.0003294,2]
[310712307,1704649845096,-1658.77813122,0.00033,4]
[310712308,1704649845107,-285.35132879,0.00033,4]
[310712309,1704649845117,-251.86806399,0.00033,7]
[310712310,1704649845126,-160.59,0.00033057,2]
[310712311,1704649845135,-500.0,0.00033238,10]
[310712312,1704649845146,-1000.0,0.00033259,2]
[310712313,1704649845155,-150.3166453,0.00033322,2]
[310712314,1704649845165,-1000.0,0.000334,2]
[310712315,1704649845174,-157.3,0.000335,2]
[310712316,1704649845183,-157.3,0.000335,2]
[310712317,1704649845193,-157.3,0.000335,2]
[310712318,1704649845203,-157.3,0.000335,2]
[310712319,1704649845212,-293.26,0.000335,2]
[310712320,1704649845222,-293.26,0.000335,2]
[310712321,1704649845232,-293.26,0.000335,2]
[310712322,1704649845243,-293.26,0.000335,2]
[310712323,1704649845252,-293.26,0.000335,2]
[310712324,1704649845262,-293.26,0.000335,2]
[310712325,1704649845272,-293.26,0.000335,2]
[310712326,1704649845282,-293.26,0.000335,2]
[310712327,1704649845294,-293.26,0.000335,2]
[310712328,1704649845304,-293.26,0.000335,2]
[310712329,1704649845315,-293.26,0.000335,2]
[310712330,1704649845325,-293.26,0.000335,2]
[310712331,1704649845335,-293.26,0.000335,2]
[310712332,1704649845346,-293.26,0.000335,2]
[310712333,1704649845355,-293.26,0.000335,2]
[310712334,1704649845365,-293.26,0.000335,2]
[310712335,1704649845375,-293.26,0.000335,2]
[310712336,1704649845385,-293.26,0.000335,2]
[310712337,1704649845395,-293.26,0.000335,2]
[310712338,1704649845405,-293.26,0.000335,2]
[310712339,1704649845414,-167.0,0.00033513,2]
[310712340,1704649845424,-1116.61392012,0.00033629,6]
[310712341,1704649845433,-1116.61392002,0.00033629,6]
[310712342,1704649845443,-6887.01782966,0.0003374,14]
[310712343,1704649845452,-3000.0,0.0003374,2]
[310712344,1704649845462,-150.0,0.00033742,2]
[310712345,1704649845472,-500.0,0.00033786,10]
[310712346,1704649845482,-153.84,0.0003379,2]
[310712347,1704649845493,-155.0,0.000338,2]
[310712348,1704649845502,-2000.0,0.000338,2]
[310712349,1704649845513,-150.3166453,0.00033804,2]
[310712350,1704649845523,-7866.33512292,0.000339,6]
[310712351,1704649845533,-176.23452681,0.000339,2]
[310712352,1704649845543,-250.0,0.000339,2]
[310712353,1704649845554,-558.61,0.00033918,2]
[310712354,1704649845563,-1000.0,0.00033922,7]
[310712355,1704649845573,-1000.0,0.00033922,7]
[310712356,1704649845582,-1000.0,0.00033922,7]
[310712357,1704649845592,-1000.0,0.00033922,7]
[310712358,1704649845601,-1000.0,0.00033922,7]
[310712361,1704649845933,-1000.0,0.00034,4]
[310712362,1704649845944,-200.0,0.00034,2]
[310712363,1704649845954,-36828.0,0.00034,2]
[310712364,1704649845964,-3000.0,0.00034,2]
[310712365,1704649845974,-175.9,0.00034,2]
[310712366,1704649845983,-300.0,0.00034,2]
[310712367,1704649845995,-150.91,0.00034,2]
[310712368,1704649846005,-150.91,0.00034,2]
[310712369,1704649846014,-150.91,0.00034,2]
[310712370,1704649846024,-150.91,0.00034,2]
[310712371,1704649846033,-150.91,0.00034,2]
[310712372,1704649846043,-150.91,0.00034,2]
[310712373,1704649846053,-150.91,0.00034,2]
[310712374,1704649846063,-150.91,0.00034,2]
[310712375,1704649846073,-150.91,0.00034,2]
[310712376,1704649846083,-150.91,0.00034,2]
[310712377,1704649846093,-150.91,0.00034,2]
[310712378,1704649846102,-150.91,0.00034,2]
[310712379,1704649846112,-150.91,0.00034,2]
[310712380,1704649846121,-150.91,0.00034,2]
[310712381,1704649846131,-150.91,0.00034,2]
[310712382,1704649846141,-150.91,0.00034,2]
[310712383,1704649846152,-150.91,0.00034,2]
[310712384,1704649846161,-150.91,0.00034,2]
[310712385,1704649846170,-150.91,0.00034,2]
[310712386,1704649846180,-150.91,0.00034,2]
[310712387,1704649846190,-150.91,0.00034,2]
[310712388,1704649846199,-150.91,0.00034,2]
[310712389,1704649846208,-150.91,0.00034,2]
[310712390,1704649846218,-150.91,0.00034,2]
[310712391,1704649846227,-150.91,0.00034,2]
[310712392,1704649846237,-150.91,0.00034,2]
[310712393,1704649846247,-150.91,0.00034,2]
[310712394,1704649846257,-150.91,0.00034,2]
[310712395,1704649846266,-150.91,0.00034,2]
[310712396,1704649846276,-150.91,0.00034,2]
[310712397,1704649846286,-150.91,0.00034,2]
[310712398,1704649846295,-150.91,0.00034,2]
[310712399,1704649846305,-176.0,0.0003402,38]
[310712400,1704649846314,-150.91,0.00034037,2]
[310712401,1704649846324,-7866.33512292,0.00034047,6]
[310712402,1704649846333,-2000.0,0.000341,4]
[310712403,1704649846343,-204.0,0.00034104,19]
[310712404,1704649846353,-150.91,0.0003419,2]
[310712405,1704649846362,-7866.33512292,0.00034194,6]
[310712406,1704649846372,-7999.0,0.000342,2]
[310712407,1704649846382,-266.92448542,0.00034234,8]
[310712408,1704649846391,-155.0,0.00034247,2]
[310712409,1704649846401,-150.3166453,0.00034286,2]
[310712410,1704649846410,-150.91,0.0003429,2]
[310712411,1704649846420,-150.91,0.0003429,2]
[310712412,1704649846429,-55555.0,0.000343,3]
[310712413,1704649846439,-500.0,0.00034334,10]
[310712414,1704649846448,-7866.33512292,0.00034341,6]
[310712415,1704649846458,-315.15,0.00034346,2]
[310712416,1704649846467,-293.26,0.000344,2]
[310712417,1704649846477,-293.26,0.000344,2]
[310712418,1704649846487,-293.26,0.000344,2]
[310712419,1704649846497,-293.26,0.000344,2]
[310712420,1704649846506,-293.26,0.000344,2]
[310712421,1704649846516,-293.26,0.000344,2]
[310712422,1704649846525,-293.26,0.000344,2]
[310712423,1704649846535,-293.26,0.000344,2]
[310712424,1704649846545,-293.26,0.000344,2]
[310712425,1704649846555,-293.26,0.000344,2]
[310712426,1704649846564,-293.26,0.000344,2]
[310712427,1704649846573,-293.26,0.000344,2]
[310712428,1704649846583,-293.26,0.000344,2]
[310712429,1704649846592,-293.26,0.000344,2]
[310712430,1704649846602,-293.26,0.000344,2]
[310712431,1704649846612,-293.26,0.000344,2]
[310712432,1704649846622,-293.26,0.000344,2]
[310712433,1704649846631,-293.26,0.000344,2]
[310712434,1704649846641,-293.26,0.000344,2]
[310712435,1704649846650,-293.26,0.000344,2]
[310712436,1704649846660,-7866.33512292,0.00034488,6]
[310712437,1704649846669,-1185.744485,0.0003452,2]
[310712438,1704649846679,-7620.170538,0.0003452,2]
[310712439,1704649846688,-3794.382354,0.0003452,2]
[310712440,1704649846698,-24384.54572,0.0003452,2]
[310712441,1704649846707,-2093.26,0.00034521,2]
[310712442,1704649846717,-175.9,0.00034548,2]
[310712443,1704649846727,-11561.4648035,0.00034597,6]
[310712444,1704649846737,-5735.86063044,0.000346,2]
[310712445,1704649846746,-150.0,0.00034607,2]
[310712446,1704649846756,-1964.456484,0.00034629,30]
[310712447,1704649846765,-1946.282812,0.00034629,30]
[310712448,1704649846775,-355.02014423,0.00034629,2]
[310712449,1704649846784,-304.715023,0.00034629,30]
[310712450,1704649846794,-7866.33512292,0.00034635,7]
[310712451,1704649846803,-180.0,0.00034658,2]
[310712452,1704649846812,-5000.0,0.0003469,2]
[310712453,1704649846822,-154.91150369,0.00034698,14]
[310712454,1704649846831,-153.84,0.00034703,2]
[310712455,1704649846840,-153.08234501,0.00034745,14]
[310712456,1704649846849,-500.0,0.00034747,3]
[310712457,1704649846859,-153.08234501,0.00034754,14]
[310712458,1704649846868,-500.0,0.00034756,3]
[310712459,1704649846878,-11561.4648035,0.00034762,6]
[310712460,1704649846888,-500.0,0.00034765,3]
[310712461,1704649846897,-150.3166453,0.00034768,2]
[310712462,1704649846906,-666.0,0.00034771,2]
[310712463,1704649846915,-500.0,0.00034774,3]
[310712464,1704649846924,-11561.4648035,0.00034774,6]
[310712465,1704649846934,-11561.4648035,0.0003478,6]
[310712466,1704649846944,-7866.33512292,0.00034781,7]
[310712467,1704649846953,-500.0,0.00034782,3]
[310712468,1704649846963,-23122.929607,0.00034784,6]
[310712469,1704649846973,-11561.4648035,0.0003479,6]
[310712470,1704649846982,-500.0,0.00034791,3]
[310712471,1704649846992,-1778.616728,0.00034794,2]
[310712472,1704649847001,-11430.255807,0.00034794,2]
[310712473,1704649847011,-5691.573531,0.00034794,2]
[310712474,1704649847020,-36576.81858,0.00034794,2]
[310712475,1704649847031,-500.0,0.000348,3]
[310712476,1704649847042,-2000.0,0.000348,2]
[310712477,1704649847052,-300.0,0.000348,2]
[310712478,1704649847062,-500.0,0.000348,2]
[310712479,1704649847073,-3839.94,0.000348,2]
[310712480,1704649847084,-4999.99,0.000348,2]
[310712481,1704649847095,-4999.99,0.000348,2]
[310712482,1704649847105,-2131.65,0.000348,2]
[310712483,1704649847117,-5000.0,0.000348,2]
[310712484,1704649847127,-2000.0,0.000348,2]
[310712485,1704649847138,-5000.0,0.00034821,2]
[310712486,1704649847149,-11561.4648035,0.00034823,6]
[310712487,1704649847159,-153.08234501,0.00034836,14]
[310712488,1704649847169,-5000.0,0.00034843,2]
[310712489,1704649847179,-5000.0,0.00034864,2]
[310712490,1704649847190,-527.45524339,0.00034866,2]
[310712491,1704649847204,-1252.92413531,0.00034866,2]
[310712492,1704649847218,-888.92731515,0.00034869,14]
[310712493,1704649847230,-11561.4648035,0.00034874,6]
[310712494,1704649847240,-155.76493732,0.00034876,14]
[310712495,1704649847250,-312.18449566,0.00034878,2]
[310712496,1704649847259,-500.0,0.00034882,10]
[310712497,1704649847270,-11561.4648035,0.00034885,6]
[310712498,1704649847280,-5000.0,0.00034885,2]
[310712499,1704649847290,-514.8236555,0.00034886,2]
[310712500,1704649847300,-665.01437,0.00034888,2]
[310712501,1704649847310,-208.26309135,0.00034894,7]
[310712502,1704649847319,-208.26309135,0.00034894,4]
[310712503,1704649847330,-208.26309135,0.00034894,7]
[310712504,1704649847340,-208.26309135,0.00034894,4]
[310712505,1704649847350,-208.26309135,0.00034894,5]
[310712506,1704649847360,-208.26309135,0.00034894,4]
[310712507,1704649847370,-208.26309135,0.00034894,6]
[310712508,1704649847380,-208.26309135,0.00034894,7]
[310712509,1704649847389,-208.26309135,0.00034894,8]
[310712510,1704649847400,-208.26309135,0.00034894,6]
[310712511,1704649847409,-208.26309135,0.00034894,6]
[310712512,1704649847419,-208.26309135,0.00034894,6]
[310712513,1704649847429,-208.26309135,0.00034894,7]
[310712514,1704649847439,-208.26309135,0.00034894,5]
[310712515,1704649847449,-208.26309135,0.00034894,8]
[310712516,1704649847459,-208.26309135,0.00034894,5]
[310712517,1704649847470,-208.26309135,0.00034894,5]
[310712518,1704649847479,-208.26309135,0.00034894,7]
[310712519,1704649847489,-208.26309135,0.00034894,8]
[310712520,1704649847500,-208.26309135,0.00034894,5]
[310712521,1704649847510,-208.26309135,0.00034894,4]
[310712522,1704649847520,-208.26309135,0.00034894,8]
[310712523,1704649847530,-208.26309135,0.00034894,8]
[310712524,1704649847540,-208.26309135,0.00034894,8]
[310712525,1704649847551,-208.26309135,0.00034894,5]
[310712526,1704649847561,-208.26309135,0.00034894,5]
[310712527,1704649847572,-208.26309135,0.00034894,4]
[310712528,1704649847583,-208.26309135,0.00034894,7]
[310712529,1704649847593,-208.26309135,0.00034894,5]
[310712530,1704649847604,-208.26309135,0.00034894,6]
[310712531,1704649847615,-208.26309135,0.00034894,8]
[310712532,1704649847626,-208.26309135,0.00034894,6]
[310712533,1704649847639,-208.26309135,0.00034894,8]
[310712534,1704649847650,-208.26309135,0.00034894,8]
[310712535,1704649847662,-208.26309135,0.00034894,8]
[310712536,1704649847672,-208.26309135,0.00034894,8]
[310712537,1704649847682,-208.26309135,0.00034894,7]
[310712538,1704649847692,-208.26309135,0.00034894,6]
[310712539,1704649847703,-208.26309135,0.00034894,6]
[310712540,1704649847713,-208.26309135,0.00034894,6]
[310712541,1704649847724,-208.26309135,0.00034894,4]
[310712542,1704649847734,-208.26309135,0.00034894,7]
[310712543,1704649847746,-208.26309135,0.00034894,4]
[310712544,1704649847757,-208.26309135,0.00034894,5]
[310712545,1704649847769,-208.26309135,0.00034894,8]
[310712546,1704649847780,-208.26309135,0.00034894,5]
[310712547,1704649847790,-208.26309135,0.00034894,4]
[310712548,1704649847801,-972.5441442,0.00034896,14]
[310712549,1704649847811,-558.61,0.00034897,2]
[310712550,1704649847822,-172.152924,0.000349,2]
[310712551,1704649847833,-1999.15471644,0.000349,2]
[310712552,1704649847844,-1999.15471627,0.000349,2]
[310712553,1704649847855,-1999.15471627,0.000349,2]
[310712554,1704649847864,-1999.15471627,0.000349,2]
[310712555,1704649847875,-208.26309135,0.00034901,6]
[310712556,1704649847886,-1101.90651322,0.00034904,3]
[310712557,1704649847896,-5000.0,0.00034906,2]
[310712558,1704649847906,-11561.4648035,0.00034908,6]
[310712559,1704649847917,-208.26309135,0.00034911,7]
[310712560,1704649847928,-208.26309135,0.00034911,8]
[310712561,1704649847939,-11561.4648035,0.00034911,6]
[310712562,1704649847949,-11561.4648035,0.00034917,6]
[310712563,1704649847960,-200.00000001,0.0003492,2]
[310712564,1704649847972,-241.20097593,0.0003492,2]
[310712565,1704649847983,-208.26309135,0.00034921,4]
[310712566,1704649847993,-208.26309135,0.00034921,7]
[310712567,1704649848005,-208.26309135,0.00034921,6]
[310712568,1704649848016,-34684.3944105,0.00034921,6]
[310712569,1704649848027,-5000.0,0.00034928,2]
[310712570,1704649848037,-7866.33512292,0.00034928,7]
[310712571,1704649848049,-208.26309135,0.00034929,7]
[310712572,1704649848060,-2371.488971,0.00034931,2]
[310712573,1704649848070,-15240.341076,0.00034931,2]
[310712574,1704649848082,-7588.764708,0.00034931,2]
[310712575,1704649848092,-48769.091441,0.00034931,2]
[310712576,1704649848103,-5000.0,0.00034949,2]
[310712577,1704649848113,-11561.4648035,0.0003495,7]
[310712578,1704649848123,-11561.4648035,0.00034966,7]
[310712579,1704649848134,-1487.34,0.00034968,10]
[310712580,1704649848145,-5000.0,0.0003497,2]
[310712581,1704649848155,-208.26309135,0.0003497,8]
[310712582,1704649848166,-208.26309135,0.0003497,7]
[310712583,1704649848177,-208.26309135,0.0003497,6]
[310712584,1704649848187,-208.26309135,0.0003497,6]
[310712585,1704649848198,-208.26309135,0.0003497,8]
[310712586,1704649848208,-208.26309135,0.00034971,4]
[310712587,1704649848218,-15849.6191336,0.00034976,2]
[310712588,1704649848229,-8118.8636439,0.00034976,2]
[310712589,1704649848239,-11561.4648035,0.00034977,7]
[310712590,1704649848251,-1784.81,0.0003498,10]
[310712591,1704649848261,-208.26309135,0.0003498,7]
[310712592,1704649848270,-208.26309135,0.0003498,4]
[310712593,1704649848280,-208.26309135,0.0003498,8]
[310712594,1704649848290,-104053.183231,0.0003498,7]
[310712595,1704649848299,-165.9779057,0.00034986,7]
[310712596,1704649848399,-150.0,0.00034986,7]
[310712597,1704649848408,-150.0,0.00034986,7]
[310712598,1704649848417,-11561.4648035,0.00034989,7]
[310712599,1704649848426,-208.26309135,0.0003499,6]
[310712600,1704649848435,-208.26309135,0.0003499,6]
[310712601,1704649848444,-208.26309135,0.0003499,7]
[310712602,1704649848453,-208.26309135,0.0003499,8]
[310712603,1704649848462,-208.26309135,0.0003499,4]
[310712604,1704649848471,-208.26309135,0.0003499,5]
[310712605,1704649848480,-208.26309135,0.0003499,4]
[310712606,1704649848489,-208.26309135,0.0003499,8]
[310712607,1704649848498,-208.26309135,0.0003499,8]
[310712608,1704649848507,-208.26309135,0.0003499,5]
[310712609,1704649848516,-208.26309135,0.0003499,6]
[310712610,1704649848526,-208.26309135,0.0003499,5]
[310712611,1704649848535,-208.26309135,0.0003499,8]
[310712612,1704649848545,-208.26309135,0.0003499,7]
[310712613,1704649848554,-208.26309135,0.0003499,6]
[310712614,1704649848563,-208.26309135,0.0003499,7]
[310712615,1704649848573,-208.26309135,0.0003499,6]
[310712616,1704649848582,-208.26309135,0.0003499,7]
[310712617,1704649848591,-208.26309135,0.0003499,5]
[310712618,1704649848600,-208.26309135,0.0003499,6]
[310712619,1704649848609,-208.26309135,0.0003499,8]
[310712620,1704649848619,-208.26309135,0.0003499,6]
[310712621,1704649848628,-208.26309135,0.0003499,6]
[310712622,1704649848637,-208.26309135,0.0003499,8]
[310712623,1704649848646,-208.26309135,0.0003499,7]
[310712624,1704649848656,-208.26309135,0.0003499,7]
[310712625,1704649848665,-208.26309135,0.0003499,8]
[310712626,1704649848674,-208.26309135,0.0003499,8]
[310712627,1704649848683,-208.26309135,0.0003499,7]
[310712628,1704649848693,-208.26309135,0.0003499,6]
[310712629,1704649848702,-208.26309135,0.0003499,4]
[310712630,1704649848711,-208.26309135,0.0003499,4]
[310712631,1704649848720,-208.26309135,0.0003499,7]
[310712632,1704649848729,-208.26309135,0.0003499,7]
[310712633,1704649848738,-208.26309135,0.0003499,6]
[310712634,1704649848747,-208.26309135,0.0003499,5]
[310712635,1704649848756,-208.26309135,0.0003499,4]
[310712636,1704649848765,-3000.0,0.0003499,2]
[310712637,1704649848775,-23122.929607,0.0003499,7]
[310712638,1704649848785,-5000.0,0.00034991,2]
[310712639,1704649848794,-153.08234501,0.00034993,14]
[310712640,1704649848803,-152.0,0.00034997,3]
[310712641,1704649848812,-155.76493732,0.00034997,14]
[310712642,1704649848822,-1691.07836104,0.00034997,2]
[310712643,1704649848832,-5000.0,0.00034999,5]
[310712644,1704649848841,-500.0,0.00034999,7]
[310712645,1704649848850,-500.0,0.00034999,7]
[310712646,1704649848859,-500.0,0.00034999,7]
[310712647,1704649848869,-500.0,0.00034999,7]
[310712648,1704649848879,-500.0,0.00034999,7]
[310712649,1704649848890,-500.0,0.00034999,7]
[310712650,1704649848901,-500.0,0.00034999,7]
[310712651,1704649848911,-500.0,0.00034999,7]
[310712652,1704649848921,-500.0,0.00034999,7]
[310712653,1704649848932,-500.0,0.00034999,7]
[310712654,1704649848942,-500.0,0.00034999,7]
[310712655,1704649848953,-500.0,0.00034999,7]
[310712656,1704649848963,-500.0,0.00034999,7]
[310712657,1704649848973,-500.0,0.00034999,7]
[310712658,1704649848984,-500.0,0.00034999,7]
[310712659,1704649848994,-500.0,0.00034999,7]
[310712660,1704649849006,-500.0,0.00034999,7]
[310712661,1704649849016,-500.0,0.00034999,7]
[310712662,1704649849026,-500.0,0.00034999,7]
[310712663,1704649849036,-500.0,0.00034999,7]
[310712664,1704649849047,-500.0,0.00034999,7]
[310712665,1704649849057,-500.0,0.00034999,7]
[310712666,1704649849067,-500.0,0.00034999,7]
[310712667,1704649849079,-185.28732773,0.00034999,7]
[310712668,1704649849088,-200.00000001,0.00034999,2]
[310712669,1704649849098,-241.20097593,0.00034999,2]
[310712670,1704649849108,-200.00000001,0.00034999,2]
[310712671,1704649849118,-241.20097593,0.00034999,2]
[310712672,1704649849129,-200.00000001,0.00034999,2]
[310712673,1704649849140,-241.20097593,0.00034999,2]
[310712674,1704649849151,-200.00000001,0.00034999,2]
[310712675,1704649849161,-241.20097593,0.00034999,2]
[310712676,1704649849170,-200.00000001,0.00034999,2]
[310712677,1704649849181,-241.20097593,0.00034999,2]
[310712678,1704649849192,-1832.23,0.00035,2]
[310712679,1704649849202,-155.0,0.00035,4]
[310712680,1704649849213,-617.74542381,0.00035,4]
[310712681,1704649849223,-5522.0275858,0.00035,4]
[310712682,1704649849234,-1194.88906965,0.00035,2]
[310712683,1704649849244,-185.29469489,0.00035,4]
[310712684,1704649849254,-16404.83531666,0.00035,2]
[310712685,1704649849264,-155.07357736,0.00035,4]
[310712686,1704649849274,-155.0,0.00035,2]
[310712687,1704649849284,-446.67016373,0.00035,4]
[310712688,1704649849294,-150.0,0.00035,7]
[310712689,1704649849304,-22249.54798394,0.00035,60]
[310712690,1704649849804,-229.72981498,0.0002659,2]
[310712691,1704649849815,-150.3425,0.00029698,2]
[310712692,1704649849825,-36.45768502,0.00030581,7]
[310712693,1704649849838,-278.0227542,0.00030581,7]
[310712694,1704649849848,-2784.40376051,0.00035,60]
[310712695,1704649849861,-874.04825555,0.00035,60]
[310712696,1704649849871,-484.5434611,0.00035,2]
[310712697,1704649849883,-2560.66286528,0.00035,2]
[310712698,1704649849895,-19119.85271586,0.00035,2]
[310712699,1704649849907,-1110.00000001,0.00035,2]
[310712700,1704649849920,-7236.0074311,0.00035,2]
[310712701,1704649849934,-217020.2487379,0.00035,2]
[310712702,1704649849947,-4865.00001,0.00035,2]
[310712703,1704649849961,-1842.51189628,0.00035,2]
[310712704,1704649849975,-682.87976334,0.00035,2]
[310712705,1704649849987,-13207.06023217,0.00035,2]
[310712706,1704649850002,-1539.85648596,0.00035,2]
[310712707,1704649850014,-968.6,0.00035,2]
[310712708,1704649891343,155.0,0.00020698,2]
[310712709,1704649913355,3882.81198272,0.00021,4]
[310712710,1704649935457,155.0,0.00021,2]